Cogmind - Beta 13 @@@ ROGUE MODE // 2024.04.15 @ 11:24:02 Player: SovietPaperclip Result: Self-destructed Performance ------------- Evolutions (1) 500 Regions Visited (2) 400 Robots Destroyed (19) 95 Value Destroyed (522) 522 Prototype IDs (0) 0 Alien Tech Used (0) 0 Bonus (0) 0 TOTAL SCORE: 1517 Bonus ------- None Cogmind --------- Core Integrity 394/400 Matter 282/300 Energy 250/250 System Corruption 0% Temperature Cool (0) Movement Treading (240) Ox1 Location -9/Materials Parts ------- > --- POWER (1) -------- Ion Engine > --- PROPULSION (3) --- Light Treads Light Treads > --- UTILITY (3) ------ High-capacity Storage Unit Light Armor Plating > --- WEAPON (2) ------- (None) > --- INVENTORY (20) --- Light Treads Light Treads Light Treads Light Treads Light Treads Light Treads Cooling System High-capacity Matter Pod (200) Light Armor Plating Light Armor Plating Shield Generator Grenade Launcher Plasma Cutter Peak State ------------ > --- POWER ------------ Ion Engine > --- PROPULSION ------- Light Treads Light Treads > --- UTILITY ---------- Small Storage Unit Light Armor Plating > --- WEAPON ----------- Medium Laser Assault Rifle > --- INVENTORY -------- Light Treads High-capacity Matter Pod Grenade Launcher [Rating: 7] Favorites ----------- Power Ion Engine Engine Ion Engine Propulsion Light Treads Treads Light Treads Utility Light Armor Plating Storage High-capacity Storage Unit Protection Light Armor Plating Weapon Assault Rifle Energy Gun Medium Laser Ballistic Gun Assault Rifle Launcher Grenade Launcher Build | -11 -10 -9 ------- Run | Yrd Mat Mat Slots Evolved 2 | . . 2 Power . | . . . Propulsion 1 | . . 1 Utility 1 | . . 1 Weapon . | . . . Parts Attached 12 | 5 7 . Power 1 | . 1 . Engine 1 | . 1 . Core . | . . . Reactor . | . . . Propulsion 3 | 2 1 . Treads 3 | 2 1 . Leg . | . . . Wheel . | . . . Hover . | . . . Flight . | . . . Utility 4 | 1 3 . Device . | . . . Storage 3 | 1 2 . Processor . | . . . Hackware . | . . . Protection 1 | . 1 . Artifact . | . . . Weapon 4 | 2 2 . Energy Gun 1 | 1 . . Energy Cannon . | . . . Ballistic Gun 1 | 1 . . Ballistic Cannon . | . . . Launcher 2 | . 2 . Special Weapon . | . . . Impact Weapon . | . . . Slashing Weapon . | . . . Piercing Weapon . | . . . Special Melee Weapon . | . . . Unidentified Prototypes . | . . . Parts Lost 2 | . 2 . Power . | . . . Propulsion . | . . . Utility . | . . . Weapon 2 | . 2 . Highest Loss Streak 1 | . 1 . To Critical Strikes . | . . . Average Slot Usage (%) 78 | . 81 55 Engine 10 | . 10 11 Treads 27 | . 28 22 Storage 13 | . 14 11 Protection 10 | . 10 11 Energy Gun 7 | . 8 . Ballistic Gun 8 | . 10 . Naked Turns . | . . . Heaviest Build 50 | 9 50 48 Greatest Support 40 | 40 40 40 Greatest Overweight (x) 1 | . 1 1 Average Overweight (x) . | . . 1 Largest Inventory Capacity 20 | 8 20 20 Average Capacity 14 | 7 14 20 Most Carried 13 | 4 10 13 Average Carried 6 | . 6 11 Final Capacity 20 | 8 20 20 Final Carried 13 | . 10 13 Class Distribution -------------------- 100% | Mutant Dominant Class ---------------- Mutant | -10/Materials Mutant | -9/Materials Resources | -11 -10 -9 ----------- Run | Yrd Mat Mat Matter Collected 677 | 218 459 . Remotely . | . . . Salvage Created 656 | . 656 . Parts 39 | . 39 . Haulers Intercepted 2 | . 2 . Recyclers Shooed 4 | . 4 . Parts Field Recycled . | . . . Retrieved Matter . | . . . Parts Self-Destructed . | . . . Prevented . | . . . Kills | -11 -10 -9 ------- Run | Yrd Mat Mat Combat Hostiles Destroyed 13 | . 13 . Melee 1 | . 1 . Guns 8 | . 8 . AOE 4 | . 4 . Classes Destroyed 5 | . 5 . Builder 1 | . 1 . Hauler 2 | . 2 . Mechanic 1 | . 1 . Watcher 2 | . 2 . Grunt 13 | . 13 . Best Kill Streak 4 | . 4 . Combat Bots Only 3 | . 3 . Max Kills in Single Turn 2 | . 2 . Gunslinging . | . . . Exploded 1 | . 1 . Melee 1 | . 1 . Uniques/NPCs Destroyed . | . . . Combat | -11 -10 -9 -------- Run | Yrd Mat Mat Hostile Shots Fired 74 | . 69 5 Missed 23 | . 22 1 Damage Taken 584 | . 544 40 Core 150 | . 144 6 Absorbed by Shields . | . . . Core Remaining (%) 71 | 100 42 . Volleys Fired 53 | . 53 . Largest 2 | . 2 . Hottest 70 | . 70 . Shots Fired 94 | . 94 . Gun 90 | . 90 . Cannon . | . . . Launcher 4 | . 4 . Special . | . . . Kinetic 49 | . 49 . Thermal 41 | . 41 . Explosive 4 | . 4 . Electromagnetic . | . . . Robot Hit Streak 21 | . 21 . Robot Miss Streak 4 | . 4 . Penetration Max . | . . . Secondary Targets 1 | . 1 . Max Gunslinging Chain 1 | . 1 . Shots Hit Robots 64 | . 64 . Core Hits 40 | . 40 . Critical Kills . | . . . Critical Parts Destroyed . | . . . Critical Strikes 3 | . 3 . Burn 3 | . 3 . Melee Attacks . | . . . Impact . | . . . Slashing . | . . . Piercing . | . . . Sneak Attacks . | . . . Combat Hostiles . | . . . Follow-up Attacks . | . . . Damage Inflicted 1042 | . 1042 . Guns 798 | . 798 . Cannons . | . . . Explosions 237 | . 237 . Melee . | . . . Ramming 7 | . 7 . Kinetic 472 | . 472 . Thermal 326 | . 326 . Explosive 237 | . 237 . Electromagnetic . | . . . Impact . | . . . Slashing . | . . . Piercing . | . . . Highest Corruption . | . . . Average Corruption . | . . . Corruption Purged . | . . . Corruption Blocked . | . . . Overload Shots . | . . . Overflow Damage . | . . . Projectiles . | . . . Explosions . | . . . Melee . | . . . Knockbacks . | . . . Impact . | . . . Kinetic . | . . . Secondary . | . . . Self-Inflicted Damage . | . . . Shots . | . . . Rammed 3 | . 3 . Targets Rammed 3 | . 3 . Kicked . | . . . Crushed . | . . . Highest Temperature 226 | . 226 . Average Temperature 52 | . 52 . Received Heat Transfer 318 | . 309 9 Siege Activations . | . . . Robots Corrupted . | . . . Combat Hostiles . | . . . Parts Fried . | . . . Impact Corruptions . | . . . Robots Melted . | . . . Combat Hostiles . | . . . Parts Melted . | . . . Heat Transferred 1184 | . 1184 . Parts Sabotaged . | . . . Parts Stolen . | . . . Parts Stripped . | . . . Power Chain Reactions . | . . . Alert | -11 -10 -9 ------- Run | Yrd Mat Mat Peak Influence 291 | . 291 129 Initial 94 | . . 94 Average 99 | . 103 101 Maximum Alert Level 1 | . 1 . Low Security (%) 91 | 100 90 100 Level 1 8 | . 9 . Level 2 . | . . . Level 3 . | . . . Level 4 . | . . . Level 5 . | . . . High Security . | . . . Max Security . | . . . Squads Dispatched 4 | . 4 . Investigation 2 | . 2 . Extermination . | . . . Reinforcement 2 | . 2 . Assault . | . . . Garrison . | . . . Intercept . | . . . Searches Triggered . | . . . Construction Impeded . | . . . Haulers Reinforced . | . . . Active Scanning Responses . | . . . Cargo Convoy Interrupts . | . . . Stealth | -11 -10 -9 --------- Run | Yrd Mat Mat Distress Signals 2 | . 2 . Communications Jammed . | . . . Distress Signals . | . . . Times Spotted 30 | . 25 5 Peak Tracking Total 5 | . 5 5 Tactical Retreats 2 | . 2 . Traps | -11 -10 -9 ------- Run | Yrd Mat Mat Traps Triggered 1 | . 1 . Indirectly . | . . . Trap Hack Attempts . | . . . Triggered . | . . . Disarmed . | . . . Reprogrammed . | . . . Reused . | . . . Traps Extracted . | . . . Installed . | . . . Triggered . | . . . Machines | -11 -10 -9 ---------- Run | Yrd Mat Mat Machines Disabled . | . . . Max in Single Turn . | . . . Machines Repaired . | . . . Machines Dismantled . | . . . Machines Sabotaged . | . . . Overloaded Fab Kills . | . . . Hacking | -11 -10 -9 --------- Run | Yrd Mat Mat Machines Accessed 6 | . 4 2 Terminals 6 | . 4 2 Fabricators . | . . . Repair Stations . | . . . Recycling Units . | . . . Scanalyzers . | . . . Garrison Access . | . . . Total Hacks 17 | . 12 5 Successful 5 | . 4 1 Failed 12 | . 8 4 Catastrophic 2 | . 2 . Database Lockouts . | . . . Manual 11 | . 6 5 Terminals 17 | . 12 5 Fabricators . | . . . Repair Stations . | . . . Recycling Units . | . . . Scanalyzers . | . . . Garrison Access . | . . . Terminal Hacks 3 | . 3 . Part Schematic 2 | . 2 . Zone Layout 1 | . 1 . Fabricator Hacks . | . . . Repair Station Hacks . | . . . Recycling Unit Hacks . | . . . Scanalyzer . | . . . Garrison Access Hacks . | . . . Unauthorized Hacks 2 | . 1 1 Terminals 2 | . 1 1 Botnet 2 | . 1 1 Fabricators . | . . . Repair Stations . | . . . Recycling Units . | . . . Scanalyzers . | . . . Garrison Access . | . . . Data Cores Recovered . | . . . Used . | . . . Hacking Detections 5 | . 3 2 Full Trace Events 1 | . 1 . Feedback Events . | . . . Feedback Blocked . | . . . Robot Schematics Acquired . | . . . Robots Built . | . . . Authchips . | . . . Time . | . . . Total Robot Build Rating . | . . . Part Schematics Acquired 2 | . 2 . Parts Built . | . . . Authchips . | . . . Time . | . . . Total Part Build Rating . | . . . Parts Repaired . | . . . Time . | . . . Parts Recycled . | . . . Recycled Matter . | . . . Retrieved Matter . | . . . Retrieved Components . | . . . Parts Scanalyzed . | . . . Part Schematics Acquired . | . . . Parts Damaged . | . . . Bothacking | -11 -10 -9 ------------ Run | Yrd Mat Mat Used RIF Installer . | . . . Robots Hacked . | . . . Non-combat . | . . . Combat . | . . . Robot Hacks Applied . | . . . Relay Couplers Released . | . . . Fabnet Peak Effective % . | . . . Robots Rewired . | . . . Allies Hacked . | . . . Hacks Repelled . | . . . Allies | -11 -10 -9 -------- Run | Yrd Mat Mat Total Allies . | . . . Largest Group . | . . . Highest-Rated Group . | . . . Highest-Rated Ally . | . . . Total Orders . | . . . Ally Attacks . | . . . Total Damage . | . . . Kills . | . . . Allies Corrupted . | . . . Allies Melted . | . . . Intel | -11 -10 -9 ------- Run | Yrd Mat Mat Robot Analysis Total . | . . . Derelict Logs Recovered . | . . . Drone Launches . | . . . Drone Recoveries . | . . . Exploration | -11 -10 -9 ------------- Run | Yrd Mat Mat Turns Passed 1260 | 45 1046 169 Spaces Moved 535 | 32 434 69 Core 14 | 14 . . Treads 521 | 18 434 69 Legs . | . . . Wheels . | . . . Hover . | . . . Flight . | . . . Fastest Speed 50 | 50 160 240 Average Speed 188 | 111 186 240 Slowest Speed 240 | 160 240 240 Overloaded Moves . | . . . Propulsion Burnouts . | . . . Robots Hopped . | . . . Cave-ins Triggered . | . . . Exploration Rate (%) 30 | 3 74 13 Regions Visited 2 Branch Regions . Pre-discovered Areas . | . . . Known Exits Taken . | . . . Unknown Exits Taken 2 | 1 1 . Scrap Searched . | . . . Spaces Dug . | . . . Terrain Destroyed 22 | . 22 . Melee . | . . . Projectile . | . . . AOE 22 | . 22 . Terrain Rammed . | . . . Walls Destroyed . | . . . Machines Disabled . | . . . Actions | -11 -10 -9 --------- Run | Yrd Mat Mat Total 687 | 41 574 72 Wait 60 | . 60 . Move 533 | 31 433 69 Hop . | . . . Pick Up 22 | 5 14 3 Fast Attach . | . . . Attach 9 | 5 4 . Detach 2 | . 2 . Swap 3 | . 3 . Drop 2 | . 2 . Fire 53 | . 53 . Melee . | . . . Ram . | . . . Kick . | . . . Crush 3 | . 3 . Escape Stasis . | . . . Rewire . | . . . Trap . | . . . Miscellaneous . | . . . Route ------- -11/Scrapyard -10/Materials (discovered 3 exits: *Mat x3) -9/Materials History --------- Turn | Location | Event 5 | -11/Scrapyard | Discovered new exit (range 15) 46 | -11/Scrapyard | Entered Materials 302 | -10/Materials | Build established: Mutant 358 | -10/Materials | Discovered new exit (range 7) 578 | -10/Materials | Discovered new exit (range 13) 820 | -10/Materials | Core integrity fell below 50% 944 | -10/Materials | Discovered new exit (range 4) 1092 | -10/Materials | Entered another Materials area 1092 | -9/Materials | Evolved 2 slots: Propulsion x1, Utility x1 1261 | -9/Materials | Self-destructed Last Messages --------------- 01081_ U-05 Engineer lays Concrete. 01081_ R-06 Scavenger collects Sml. Laser. 01084_ U-05 Engineer lays Concrete. 01085_ U-05 Engineer builds a Wall. PARAMETERS=PROPULSION+1,UTILITY+1 LOCATION=UNKNOWN GOAL=ESCAPE 01107_ Connecting with Terminal... 01107_ Current location identified: Materials >>Trojan(Botnet) Trojan loaded successfully. Testing... Terminal linked with 0 systems. Awaiting botnet instructions. 01114_ Acquired Shield Generator. 01120_ Connecting with Terminal... 01146_ Acquired Plasma Cutter. 01158_ K-01 Serf collects debris. 01181_ Connecting with Terminal... 01198_ Acquired Cooling System. Map ----- +----------------------------------------------------+ | ?????????????????????????????????????????????????? | | ?????????????????????????????????????????????????? | | ?????????????????????????????????????????????????? | | ?????????????????????????????????????????????????? | | ?????????????????????????????????????????????????? | | ?????????????????????????????????????????????????? | | ?????????????????????????????????????????????????? | | ?????????????????????????????????????????????????? | | ?????????????????????????????????????????????????? | | ?????????????????????????????????????????????????? | | ????????????????????????? ?????????????????????? | | ????????????????????????? s?????????????????????? | | ?????????????????????????ss ?????????????????????? | | ????????????????????????? ?????????????????????? | | ????????????????????????? "?????????????????????? | | ????????????????????????? ""????????????????????? | | ????????????????????????? """ ????????????????? | | ????????????????????????# """ #??????????????? | | ????????????????????????# #??????????????? | | ????????????????????????# #??????????????? | | ????????????????????????# """ [ #??????????????? | | ????????????????????????# """ #??????????????? | | ????????????????????????# """ #??????????????? | | ????????????????????????# """ #??????????????? | | ???????????????????????## #??????????????? | | ???????????????????????# @ #??????????????? | | ????????? ##### """ #??????????????? | | ????????? """ #??????????????? | | ????????? ##### """ #??????????????? | | ???????????????????????# """ #??????????????? | | ???????????????????????# #??????????????? | | ???????????????????????# #??????????????? | | ???????????????????????# """ ###?????#######? | | ???????????????????????# """ ####### ## | | ???????????????????????# """ | | ???????????????????????# """ T | | ???????????????????????# | | ???????????????????????# ####### ## | | ???????????????????????##############???#####+#### | | ????????????????????????????????????????# | | ????????????????????????????????????????# | | ????????????????????????????????????????# | | ????????????????????????????????????????# | | ????????????????????????????????????????# """" | | ????????????????????????????????????????# = """" | | ????????????????????????????????????????# """" | | ????????????????????????????????????????# | | ????????????????????????????????????????#########? | | | | | +----------------------------------------------------+ Best States ------------- Heat Dissipation 28 Energy Generation 10 Energy Capacity 250 Matter Stores 300 Matter Capacity 300 Sight Range 16 Terrain Scan Density 10 Armor Coverage 150 Evasion (%) 50 Recoil Reduction 2 Item Schematics ----------------- Huge Storage Unit | -10/Materials | Hacked Hcp. Storage Unit | -10/Materials | Hacked Robot Schematics ------------------ None Fabricated ------------ Nothing Alien Tech Used ----------------- None Achievements -------------- None Challenges ------------ None Game ------ Seed NuclearVortexPendant Manual? 0 Play Time 00:08:03 Cumulative 92.9 hours Start 2024.04.15 @ 11:16:50 End 2024.04.15 @ 11:24:02 Sessions 1 Manual Loads 0 Difficulty Rogue Special Mode None Game No. 116 Rogue 116 Adventurer 0 Explorer 0 Win Type - Total 1 Types 1/0/0/0/0/0/0/0/0 Lore% 42 Gallery% 48 Achievement% 45 Wizard Run 0 Options --------- Layout 1 ASCII 0 Keyboard 0 Movement Mouse Keybinds 0 Fullscreen 2 Font 32/Smallcaps Map View 50x40 Zoom Use 0% Tactical HUD 1 Map Filters NONE Filters NONE Steam 1 RUN: 38c3e915-8042-4e41-8b35-16823519f3b7